[Event "*** Titled Tuesday Blitz"]
[Site "Chess.com"]
[Date "2019.01.01"]
[Round "9"]
[White "joppie2"]
[Black "sergiochess83"]
[Result "1-0"]
[WhiteElo "2754"]
[BlackElo "2756"]
[TimeControl "180+2"]
[EndTime "15:09:37 PST"]
[Termination "joppie2 won on time"]

1. c4 {[%clk 0:01:55.8]} 1... e5 {[%clk 0:02:53.5]} 2. Nc3 {[%clk 0:01:50.6]}
2... Bb4 {[%clk 0:02:53.3]} 3. Nd5 {[%clk 0:01:50.9]} 3... Bc5 {[%clk
0:02:53.6]} 4. e3 {[%clk 0:01:50.8]} 4... c6 {[%clk 0:02:50.2]} 5. Nc3 {[%clk
0:01:50.8]} 5... Bb4 {[%clk 0:02:47.8]} 6. Nf3 {[%clk 0:01:45.8]} 6... Qe7
{[%clk 0:02:47.4]} 7. Qc2 {[%clk 0:01:41.8]} 7... Nf6 {[%clk 0:02:41.9]} 8. a3
{[%clk 0:01:42.7]} 8... Bxc3 {[%clk 0:02:41.8]} 9. Qxc3 {[%clk 0:01:44.6]} 9...
d6 {[%clk 0:02:39]} 10. d4 {[%clk 0:01:45.5]} 10... e4 {[%clk 0:02:37.8]} 11.
Nd2 {[%clk 0:01:45.6]} 11... O-O {[%clk 0:02:37.1]} 12. Be2 {[%clk 0:01:44.7]}
12... Bf5 {[%clk 0:02:29.9]} 13. h3 {[%clk 0:01:44.3]} 13... h6 {[%clk
0:02:14.9]} 14. b3 {[%clk 0:01:45.5]} 14... c5 {[%clk 0:02:03.1]} 15. Bb2 {[%clk
0:01:42.8]} 15... Nc6 {[%clk 0:02:02.6]} 16. d5 {[%clk 0:01:37.9]} 16... Ne5
{[%clk 0:02:01.8]} 17. f4 {[%clk 0:01:38.3]} 17... exf3 {[%clk 0:01:58.4]} 18.
gxf3 {[%clk 0:01:40.2]} 18... b5 {[%clk 0:01:45.7]} 19. e4 {[%clk 0:01:39.8]}
19... Bg6 {[%clk 0:01:42.8]} 20. cxb5 {[%clk 0:01:33.4]} 20... Nh5 {[%clk
0:01:43.8]} 21. O-O-O {[%clk 0:01:28.5]} 21... Nf4 {[%clk 0:01:34.1]} 22. Bf1
{[%clk 0:01:29.7]} 22... f5 {[%clk 0:01:33.7]} 23. Nc4 {[%clk 0:01:20.8]} 23...
fxe4 {[%clk 0:01:27.4]} 24. Nxe5 {[%clk 0:01:21]} 24... Qxe5 {[%clk 0:01:27.7]}
25. Qxe5 {[%clk 0:01:20.5]} 25... dxe5 {[%clk 0:01:29.6]} 26. fxe4 {[%clk
0:01:17.3]} 26... Bxe4 {[%clk 0:01:30.2]} 27. Rg1 {[%clk 0:01:18.6]} 27... Rae8
{[%clk 0:01:15.6]} 28. d6 {[%clk 0:01:14.7]} 28... Ng6 {[%clk 0:00:44.2]} 29. d7
{[%clk 0:01:02.2]} 29... Rd8 {[%clk 0:00:45]} 30. Bc3 {[%clk 0:01:03.5]} 30...
Rf2 {[%clk 0:00:40.7]} 31. Bd3 {[%clk 0:00:57.1]} 31... Bxd3 {[%clk 0:00:37]}
32. Rxd3 {[%clk 0:00:59]} 32... Nf4 {[%clk 0:00:37.2]} 33. Rd2 {[%clk
0:00:27.7]} 33... Rxd2 {[%clk 0:00:33.4]} 34. Kxd2 {[%clk 0:00:29.6]} 34...
Rxd7+ {[%clk 0:00:34.4]} 35. Kc2 {[%clk 0:00:31.2]} 35... Nxh3 {[%clk
0:00:24.8]} 36. Rg3 {[%clk 0:00:27.7]} 36... Ng5 {[%clk 0:00:13.5]} 37. Bxe5
{[%clk 0:00:28.5]} 37... Kf7 {[%clk 0:00:14.8]} 38. Rc3 {[%clk 0:00:22.8]} 38...
Ne4 {[%clk 0:00:14.1]} 39. Rc4 {[%clk 0:00:24]} 39... Rd2+ {[%clk 0:00:08.4]}
40. Kc1 {[%clk 0:00:25.2]} 40... Re2 {[%clk 0:00:09.7]} 41. Bb8 {[%clk
0:00:21.1]} 41... Ke6 {[%clk 0:00:04.7]} 42. Bxa7 {[%clk 0:00:19]} 42... Kd5
{[%clk 0:00:06]} 43. a4 {[%clk 0:00:17.5]} 43... g5 {[%clk 0:00:06.8]} 44. Bb8
{[%clk 0:00:18]} 44... g4 {[%clk 0:00:07.3]} 45. a5 {[%clk 0:00:16.4]} 45... Ra2
{[%clk 0:00:07.6]} 46. a6 {[%clk 0:00:16.4]} 46... g3 {[%clk 0:00:07.5]} 47.
Rxe4 {[%clk 0:00:15.6]} 47... g2 {[%clk 0:00:06.1]} 48. Rg4 {[%clk 0:00:13.4]}
1-0

[Event "*** Titled Tuesday Blitz"]
[Site "Chess.com"]
[Date "2019.01.01"]
[Round "9"]
[White "DryCounty"]
[Black "riconaipe"]
[Result "1/2-1/2"]
[WhiteElo "2713"]
[BlackElo "2462"]
[TimeControl "180+2"]
[EndTime "15:09:38 PST"]
[Termination "Game drawn - insufficient material"]

1. e4 {[%clk 0:03:01.9]} 1... c6 {[%clk 0:02:58.8]} 2. d4 {[%clk 0:03:01.8]}
2... d5 {[%clk 0:03:00.7]} 3. Nc3 {[%clk 0:03:03]} 3... dxe4 {[%clk 0:03:01.2]}
4. Nxe4 {[%clk 0:03:04.9]} 4... Nf6 {[%clk 0:03:02.1]} 5. Nxf6+ {[%clk
0:03:04.8]} 5... exf6 {[%clk 0:03:03.8]} 6. Nf3 {[%clk 0:03:05.1]} 6... Bg4
{[%clk 0:03:03.8]} 7. Be2 {[%clk 0:03:05.4]} 7... Bd6 {[%clk 0:03:04.8]} 8. h3
{[%clk 0:03:05.4]} 8... Bh5 {[%clk 0:03:05.6]} 9. Nh4 {[%clk 0:03:01.5]} 9...
Bxe2 {[%clk 0:03:06]} 10. Qxe2+ {[%clk 0:03:02.2]} 10... Qe7 {[%clk 0:03:07.5]}
11. Nf5 {[%clk 0:02:58.7]} 11... Qxe2+ {[%clk 0:03:06.9]} 12. Kxe2 {[%clk
0:03:00.6]} 12... Bf8 {[%clk 0:03:06.7]} 13. Rd1 {[%clk 0:02:55]} 13... g6
{[%clk 0:03:06.7]} 14. Ne3 {[%clk 0:02:54.6]} 14... Nd7 {[%clk 0:03:08.2]} 15.
d5 {[%clk 0:02:52.6]} 15... cxd5 {[%clk 0:03:06.9]} 16. Nxd5 {[%clk 0:02:53.4]}
16... O-O-O {[%clk 0:03:05.5]} 17. Be3 {[%clk 0:02:51]} 17... b6 {[%clk
0:03:02.8]} 18. Rd3 {[%clk 0:02:47]} 18... Bd6 {[%clk 0:02:53.2]} 19. Rad1
{[%clk 0:02:44.1]} 19... Bb8 {[%clk 0:02:46.8]} 20. Ne7+ {[%clk 0:02:36.3]}
20... Kc7 {[%clk 0:02:47.9]} 21. Bf4+ {[%clk 0:02:29.6]} 21... Ne5 {[%clk
0:02:48.6]} 22. Rxd8 {[%clk 0:02:18.9]} 22... Rxd8 {[%clk 0:02:50.5]} 23. Nd5+
{[%clk 0:02:15.1]} 23... Kc8 {[%clk 0:02:15.3]} 24. Nxf6 {[%clk 0:02:11.3]}
24... Rxd1 {[%clk 0:01:52]} 25. Kxd1 {[%clk 0:02:13.2]} 25... h5 {[%clk
0:01:47.5]} 26. Ke2 {[%clk 0:02:13.7]} 26... Kd8 {[%clk 0:01:27]} 27. b3 {[%clk
0:02:13.3]} 27... Ke7 {[%clk 0:01:27.2]} 28. Ne4 {[%clk 0:02:12.6]} 28... f6
{[%clk 0:01:22.4]} 29. c4 {[%clk 0:02:10.1]} 29... Ke6 {[%clk 0:01:23]} 30. Nc3
{[%clk 0:02:06.3]} 30... Bd6 {[%clk 0:01:15.3]} 31. Nb5 {[%clk 0:02:06.1]} 31...
Nxc4 {[%clk 0:01:10.4]} 32. bxc4 {[%clk 0:01:56.6]} 32... Bxf4 {[%clk 0:01:11]}
33. Nxa7 {[%clk 0:01:58.1]} 33... Kd6 {[%clk 0:01:07.3]} 34. Kd3 {[%clk
0:01:56.8]} 34... Kc5 {[%clk 0:01:07.7]} 35. Nb5 {[%clk 0:01:54.6]} 35... Be5
{[%clk 0:01:01.6]} 36. f3 {[%clk 0:01:54.4]} 36... Kb4 {[%clk 0:01:01.8]} 37.
Na7 {[%clk 0:01:50.1]} 37... Kc5 {[%clk 0:00:58.7]} 38. Nc8 {[%clk 0:01:46.5]}
38... g5 {[%clk 0:00:53.7]} 39. Ne7 {[%clk 0:01:46.2]} 39... Bb2 {[%clk
0:00:44.8]} 40. g4 {[%clk 0:01:45]} 40... hxg4 {[%clk 0:00:45.2]} 41. hxg4
{[%clk 0:01:44.7]} 41... Kb4 {[%clk 0:00:44]} 42. Nd5+ {[%clk 0:01:43.9]} 42...
Kc5 {[%clk 0:00:45.5]} 43. Ne3 {[%clk 0:01:37.4]} 43... Kb4 {[%clk 0:00:42.5]}
44. Nd5+ {[%clk 0:01:36.5]} 44... Kc5 {[%clk 0:00:43.4]} 45. a4 {[%clk 0:01:38]}
45... Ba1 {[%clk 0:00:34.9]} 46. Ke4 {[%clk 0:01:32.9]} 46... Kxc4 {[%clk
0:00:21.8]} 47. Nxb6+ {[%clk 0:01:31.8]} 47... Kb4 {[%clk 0:00:23.1]} 48. Kf5
{[%clk 0:01:29.6]} 48... Bb2 {[%clk 0:00:16.5]} 49. Nd5+ {[%clk 0:01:29.7]}
49... Kxa4 {[%clk 0:00:16.9]} 50. Nxf6 {[%clk 0:01:31.2]} 50... Bc1 {[%clk
0:00:17.5]} 51. Ne4 {[%clk 0:01:31.3]} 51... Kb5 {[%clk 0:00:18.8]} 52. Nxg5
{[%clk 0:01:31.6]} 52... Kc6 {[%clk 0:00:20.7]} 53. f4 {[%clk 0:01:30.6]} 53...
Kd7 {[%clk 0:00:21.6]} 54. Ne4 {[%clk 0:01:30.6]} 54... Ke7 {[%clk 0:00:23]} 55.
g5 {[%clk 0:01:31.3]} 55... Kf7 {[%clk 0:00:24.9]} 56. Nd6+ {[%clk 0:01:31.4]}
56... Kg7 {[%clk 0:00:26.8]} 57. Kg4 {[%clk 0:01:31.5]} 57... Bb2 {[%clk
0:00:25.2]} 58. f5 {[%clk 0:01:32.2]} 58... Bc3 {[%clk 0:00:25.4]} 59. f6+
{[%clk 0:01:32.5]} 59... Kg6 {[%clk 0:00:22.7]} 60. Ne4 {[%clk 0:01:33.2]} 60...
Be5 {[%clk 0:00:21.6]} 61. Kf3 {[%clk 0:01:33.3]} 61... Kf5 {[%clk 0:00:20.4]}
62. Ke3 {[%clk 0:01:27.9]} 62... Bf4+ {[%clk 0:00:21.3]} 63. Kd4 {[%clk
0:01:26.3]} 63... Bxg5 {[%clk 0:00:21.7]} 64. f7 {[%clk 0:01:27.7]} 64... Be7
{[%clk 0:00:21.1]} 65. Kd5 {[%clk 0:01:28.3]} 65... Bf8 {[%clk 0:00:22.2]} 66.
Nd6+ {[%clk 0:01:11.4]} 66... Kf6 {[%clk 0:00:19.6]} 67. Kc6 {[%clk 0:01:12.6]}
67... Bxd6 {[%clk 0:00:20]} 68. Kxd6 {[%clk 0:01:13.8]} 68... Kxf7 {[%clk
0:00:21.5]} 1/2-1/2

[Event "*** Titled Tuesday Blitz"]
[Site "Chess.com"]
[Date "2019.01.01"]
[Round "9"]
[White "Zq1"]
[Black "nurmiTV"]
[Result "1-0"]
[WhiteElo "2488"]
[BlackElo "2601"]
[TimeControl "180+2"]
[EndTime "15:09:43 PST"]
[Termination "Zq1 won on time"]

1. d4 {[%clk 0:03:00.4]} 1... Nf6 {[%clk 0:02:59.8]} 2. c4 {[%clk 0:03:01.3]}
2... e6 {[%clk 0:03:01.1]} 3. g3 {[%clk 0:03:01.9]} 3... c5 {[%clk 0:03:01.2]}
4. Nf3 {[%clk 0:03:02.2]} 4... cxd4 {[%clk 0:03:00.3]} 5. Nxd4 {[%clk
0:03:03.1]} 5... Nc6 {[%clk 0:03:01.8]} 6. Bg2 {[%clk 0:03:03]} 6... Bb4+ {[%clk
0:02:56.4]} 7. Bd2 {[%clk 0:03:03.3]} 7... Qb6 {[%clk 0:02:37.1]} 8. e3 {[%clk
0:03:03.4]} 8... O-O {[%clk 0:02:24.9]} 9. O-O {[%clk 0:03:03.3]} 9... d5 {[%clk
0:02:24.5]} 10. cxd5 {[%clk 0:02:55.4]} 10... Nxd5 {[%clk 0:02:24.6]} 11. Nxc6
{[%clk 0:02:54.5]} 11... bxc6 {[%clk 0:02:24.7]} 12. Qc2 {[%clk 0:02:52.9]}
12... Ba6 {[%clk 0:02:17]} 13. Rd1 {[%clk 0:02:49]} 13... Rac8 {[%clk
0:02:14.3]} 14. Nc3 {[%clk 0:02:48.3]} 14... Be7 {[%clk 0:02:11.8]} 15. Na4
{[%clk 0:02:47.7]} 15... Qb8 {[%clk 0:01:52.5]} 16. a3 {[%clk 0:02:30.8]} 16...
c5 {[%clk 0:01:47.6]} 17. e4 {[%clk 0:02:31.1]} 17... Nb6 {[%clk 0:01:45.6]} 18.
Bc3 {[%clk 0:02:16.3]} 18... Bb5 {[%clk 0:01:38.2]} 19. Nxb6 {[%clk 0:02:15.5]}
19... axb6 {[%clk 0:01:38.6]} 20. a4 {[%clk 0:02:16.3]} 20... Bc6 {[%clk
0:01:38.9]} 21. b3 {[%clk 0:02:12.5]} 21... Qb7 {[%clk 0:01:39.3]} 22. Qb2
{[%clk 0:02:09.8]} 22... f6 {[%clk 0:01:28.7]} 23. Re1 {[%clk 0:02:09.3]} 23...
Rcd8 {[%clk 0:01:26.1]} 24. b4 {[%clk 0:02:08.7]} 24... Qd7 {[%clk 0:01:04]} 25.
b5 {[%clk 0:01:49.3]} 25... Ba8 {[%clk 0:01:02.9]} 26. a5 {[%clk 0:01:50.1]}
26... bxa5 {[%clk 0:01:03.3]} 27. Rxa5 {[%clk 0:01:49.7]} 27... Rb8 {[%clk
0:00:56.1]} 28. Qa2 {[%clk 0:01:49.8]} 28... Kh8 {[%clk 0:00:49]} 29. Ra7 {[%clk
0:01:42.5]} 29... Bb7 {[%clk 0:00:37.1]} 30. b6 {[%clk 0:01:28.4]} 30... Qc6
{[%clk 0:00:32]} 31. Rxb7 {[%clk 0:01:02.3]} 31... Qxb7 {[%clk 0:00:27.1]} 32.
Qxe6 {[%clk 0:01:02.5]} 32... Bd8 {[%clk 0:00:23.4]} 33. e5 {[%clk 0:01:01]}
33... Qxb6 {[%clk 0:00:22.5]} 34. Qd7 {[%clk 0:00:58.2]} 34... fxe5 {[%clk
0:00:11.1]} 35. Bxe5 {[%clk 0:00:58]} 35... Bf6 {[%clk 0:00:12.7]} 36. Bxb8
{[%clk 0:00:58.1]} 36... Qxb8 {[%clk 0:00:14.6]} 37. Be4 {[%clk 0:00:46.3]}
37... Bd4 {[%clk 0:00:11.2]} 38. Re2 {[%clk 0:00:46.7]} 38... Qe5 {[%clk
0:00:07.6]} 39. Qg4 {[%clk 0:00:46.6]} 39... c4 {[%clk 0:00:07.4]} 40. Bc2
{[%clk 0:00:40.9]} 40... Bxf2+ {[%clk 0:00:04.5]} 41. Kg2 {[%clk 0:00:39.5]}
41... Qd5+ {[%clk 0:00:05.4]} 42. Be4 {[%clk 0:00:39.6]} 42... Qd4 {[%clk
0:00:06.7]} 43. Qh5 {[%clk 0:00:35.5]} 43... g6 {[%clk 0:00:04.6]} 44. Bxg6
{[%clk 0:00:35.2]} 44... Qg7 {[%clk 0:00:05.5]} 45. Bc2 {[%clk 0:00:24.9]} 45...
Bd4 {[%clk 0:00:04.9]} 46. Qd5 {[%clk 0:00:21.5]} 46... c3 {[%clk 0:00:05]} 47.
Qe4 {[%clk 0:00:13.3]} 47... Rb8 {[%clk 0:00:02.7]} 48. h4 {[%clk 0:00:11.1]}
48... Rg8 {[%clk 0:00:03.3]} 49. Qd3 {[%clk 0:00:10.3]} 49... Rf8 {[%clk
0:00:04.1]} 50. Re4 {[%clk 0:00:10.5]} 50... Be5 {[%clk 0:00:05.2]} 51. Rg4
{[%clk 0:00:09.4]} 51... Qe7 {[%clk 0:00:04.7]} 52. Qe4 {[%clk 0:00:07.2]} 1-0

[Event "*** Titled Tuesday Blitz"]
[Site "Chess.com"]
[Date "2019.01.01"]
[Round "9"]
[White "BogdanDeac"]
[Black "TST2014"]
[Result "1-0"]
[WhiteElo "2744"]
[BlackElo "2507"]
[TimeControl "180+2"]
[EndTime "15:09:47 PST"]
[Termination "BogdanDeac won on time"]

1. e4 {[%clk 0:03:01.9]} 1... c5 {[%clk 0:03:00.5]} 2. Nf3 {[%clk 0:03:01.1]}
2... Nc6 {[%clk 0:03:01.5]} 3. d4 {[%clk 0:03:01.5]} 3... cxd4 {[%clk
0:03:02.5]} 4. Nxd4 {[%clk 0:03:03.4]} 4... Nf6 {[%clk 0:03:03.7]} 5. Nc3 {[%clk
0:03:04.4]} 5... d6 {[%clk 0:03:04.7]} 6. Bg5 {[%clk 0:03:04.8]} 6... e6 {[%clk
0:03:05.9]} 7. Qd2 {[%clk 0:03:04.4]} 7... a6 {[%clk 0:03:07.1]} 8. O-O-O {[%clk
0:03:03.4]} 8... Bd7 {[%clk 0:03:08.1]} 9. f3 {[%clk 0:03:03.1]} 9... h6 {[%clk
0:03:07.9]} 10. Be3 {[%clk 0:03:01.8]} 10... h5 {[%clk 0:03:09.1]} 11. g3 {[%clk
0:02:59.1]} 11... Qc7 {[%clk 0:03:09.1]} 12. h3 {[%clk 0:02:59.7]} 12... Ne5
{[%clk 0:03:09.5]} 13. f4 {[%clk 0:02:57.2]} 13... Nc4 {[%clk 0:03:10.4]} 14.
Bxc4 {[%clk 0:02:57.5]} 14... Qxc4 {[%clk 0:03:12]} 15. e5 {[%clk 0:02:57.8]}
15... Nd5 {[%clk 0:03:09.9]} 16. Nb3 {[%clk 0:02:54.9]} 16... Nxc3 {[%clk
0:03:08.3]} 17. bxc3 {[%clk 0:02:55.5]} 17... d5 {[%clk 0:02:58.3]} 18. Qd3
{[%clk 0:02:54.7]} 18... Ba3+ {[%clk 0:02:58.2]} 19. Kd2 {[%clk 0:02:54.9]}
19... Qc7 {[%clk 0:02:49.6]} 20. Bd4 {[%clk 0:02:54]} 20... Bb5 {[%clk
0:02:48.6]} 21. Qf3 {[%clk 0:02:54.8]} 21... Rc8 {[%clk 0:02:43.1]} 22. f5
{[%clk 0:02:55.5]} 22... a5 {[%clk 0:02:29.5]} 23. Nc1 {[%clk 0:02:52.3]} 23...
Bc5 {[%clk 0:02:22.3]} 24. Bxc5 {[%clk 0:02:52]} 24... Qxc5 {[%clk 0:02:22.9]}
25. Nb3 {[%clk 0:02:53.9]} 25... Qc7 {[%clk 0:02:20.7]} 26. Nd4 {[%clk
0:02:54.3]} 26... Bd7 {[%clk 0:02:09]} 27. fxe6 {[%clk 0:02:54.2]} 27... Bxe6
{[%clk 0:02:10.2]} 28. Qe3 {[%clk 0:02:49.6]} 28... Qc4 {[%clk 0:01:56.1]} 29.
Rb1 {[%clk 0:02:49.9]} 29... O-O {[%clk 0:01:50]} 30. Rxb7 {[%clk 0:02:48.8]}
30... Qxa2 {[%clk 0:01:50.6]} 31. Nxe6 {[%clk 0:02:48.7]} 31... fxe6 {[%clk
0:01:36.3]} 32. Qg5 {[%clk 0:02:49.4]} 32... Rf7 {[%clk 0:01:37.7]} 33. Rxf7
{[%clk 0:02:48.4]} 33... Kxf7 {[%clk 0:01:39.4]} 34. Rf1+ {[%clk 0:02:48.1]}
34... Kg8 {[%clk 0:01:40.6]} 35. Qxh5 {[%clk 0:02:49.1]} 35... Rf8 {[%clk
0:01:35.9]} 36. Rxf8+ {[%clk 0:02:42.9]} 36... Kxf8 {[%clk 0:01:37.3]} 37. Qf3+
{[%clk 0:02:43.6]} 37... Ke7 {[%clk 0:01:36.9]} 38. Qg4 {[%clk 0:02:43.4]} 38...
Kf7 {[%clk 0:01:29.8]} 39. Qf4+ {[%clk 0:02:44.4]} 39... Kg8 {[%clk 0:01:29.4]}
40. Qg4 {[%clk 0:02:44.4]} 40... Kf7 {[%clk 0:01:21.6]} 41. Qh5+ {[%clk
0:02:45.3]} 41... Kf8 {[%clk 0:01:20.3]} 42. Qg6 {[%clk 0:02:45.5]} 42... d4
{[%clk 0:01:18.7]} 43. cxd4 {[%clk 0:02:45.8]} 43... Qd5 {[%clk 0:01:19.2]} 44.
Qd3 {[%clk 0:02:43.2]} 44... Kf7 {[%clk 0:01:10.5]} 45. h4 {[%clk 0:02:41.5]}
45... a4 {[%clk 0:01:11.2]} 46. Kc1 {[%clk 0:02:39.5]} 46... Qa2 {[%clk
0:01:11.9]} 47. Qf3+ {[%clk 0:02:37.7]} 47... Ke7 {[%clk 0:01:12.2]} 48. Qb7+
{[%clk 0:02:38.4]} 48... Kf8 {[%clk 0:01:13.4]} 49. Qb2 {[%clk 0:02:37.6]} 49...
Qc4 {[%clk 0:01:12.7]} 50. Qa3+ {[%clk 0:02:36.2]} 50... Kf7 {[%clk 0:01:12.5]}
51. Qc5 {[%clk 0:02:36.2]} 51... Qa2 {[%clk 0:01:10.3]} 52. Qc3 {[%clk
0:02:30.1]} 52... a3 {[%clk 0:01:00.6]} 53. g4 {[%clk 0:02:31]} 53... Kg6 {[%clk
0:00:57.2]} 54. Qd3+ {[%clk 0:02:25.2]} 54... Kf7 {[%clk 0:00:57.5]} 55. Qc3
{[%clk 0:02:23.6]} 55... Kg6 {[%clk 0:00:58.6]} 56. Kd2 {[%clk 0:02:23.6]} 56...
Qb2 {[%clk 0:00:54.5]} 57. Qd3+ {[%clk 0:02:23.5]} 57... Kf7 {[%clk 0:00:55.3]}
58. Qf3+ {[%clk 0:02:12.5]} 58... Ke7 {[%clk 0:00:54.5]} 59. Qc3 {[%clk
0:02:13.4]} 59... Kf7 {[%clk 0:00:50.3]} 60. h5 {[%clk 0:02:13.8]} 60... g5
{[%clk 0:00:37.9]} 61. Qc7+ {[%clk 0:02:12]} 61... Ke8 {[%clk 0:00:36.5]} 62.
Qc6+ {[%clk 0:02:09.5]} 62... Kf7 {[%clk 0:00:36]} 63. Qd7+ {[%clk 0:02:10.1]}
63... Kf8 {[%clk 0:00:37.4]} 64. Qd8+ {[%clk 0:02:06.7]} 64... Kg7 {[%clk
0:00:30.9]} 65. Qxg5+ {[%clk 0:02:07.1]} 65... Kf7 {[%clk 0:00:31.3]} 66. Qf6+
{[%clk 0:02:07.9]} 66... Ke8 {[%clk 0:00:31.3]} 67. Qxe6+ {[%clk 0:02:08.4]}
67... Kd8 {[%clk 0:00:32.7]} 68. Qd6+ {[%clk 0:02:09.3]} 68... Kc8 {[%clk
0:00:33.7]} 69. h6 {[%clk 0:02:10.2]} 69... a2 {[%clk 0:00:28.6]} 70. h7 {[%clk
0:02:10.9]} 70... Qc1+ {[%clk 0:00:08.1]} 71. Kxc1 {[%clk 0:02:10.6]} 71...
a1=Q+ {[%clk 0:00:08.9]} 72. Kd2 {[%clk 0:02:11.4]} 72... Qa5+ {[%clk 0:00:10]}
73. c3 {[%clk 0:02:11.8]} 73... Qa2+ {[%clk 0:00:08.5]} 74. Ke3 {[%clk
0:02:11.8]} 74... Kb7 {[%clk 0:00:03.5]} 75. h8=Q {[%clk 0:02:11.5]} 1-0

[Event "*** Titled Tuesday Blitz"]
[Site "Chess.com"]
[Date "2019.01.01"]
[Round "9"]
[White "Boundless_Strike"]
[Black "DrMelekess"]
[Result "0-1"]
[WhiteElo "2471"]
[BlackElo "2581"]
[TimeControl "180+2"]
[EndTime "15:09:47 PST"]
[Termination "DrMelekess won by checkmate"]

1. d4 {[%clk 0:03:00.8]} 1... Nf6 {[%clk 0:02:58.3]} 2. Nf3 {[%clk 0:03:01.4]}
2... e6 {[%clk 0:02:53.5]} 3. e3 {[%clk 0:03:02.6]} 3... b6 {[%clk 0:02:50.2]}
4. Bd3 {[%clk 0:03:03.1]} 4... Bb7 {[%clk 0:02:51]} 5. O-O {[%clk 0:03:04.5]}
5... Be7 {[%clk 0:02:52.2]} 6. c4 {[%clk 0:03:05.7]} 6... O-O {[%clk 0:02:52.4]}
7. Nc3 {[%clk 0:03:07.3]} 7... d5 {[%clk 0:02:51.2]} 8. cxd5 {[%clk 0:03:08.1]}
8... exd5 {[%clk 0:02:48.4]} 9. Ne5 {[%clk 0:03:07]} 9... a6 {[%clk 0:02:43.1]}
10. Bd2 {[%clk 0:03:07.5]} 10... Nbd7 {[%clk 0:02:41.9]} 11. f4 {[%clk
0:03:08.5]} 11... c5 {[%clk 0:02:37.6]} 12. Qf3 {[%clk 0:03:08.9]} 12... b5
{[%clk 0:02:31.4]} 13. a3 {[%clk 0:03:02.4]} 13... Re8 {[%clk 0:02:24.9]} 14.
Rad1 {[%clk 0:02:53.4]} 14... b4 {[%clk 0:02:04.6]} 15. axb4 {[%clk 0:02:49.1]}
15... cxd4 {[%clk 0:01:58.6]} 16. exd4 {[%clk 0:02:49.3]} 16... Bxb4 {[%clk
0:01:59.5]} 17. Be1 {[%clk 0:02:42.8]} 17... Bxc3 {[%clk 0:01:52.1]} 18. bxc3
{[%clk 0:02:32.3]} 18... Qc7 {[%clk 0:01:47.1]} 19. Bh4 {[%clk 0:02:19.7]} 19...
Rac8 {[%clk 0:01:29.1]} 20. Bf5 {[%clk 0:01:59.8]} 20... Rb8 {[%clk 0:01:22.9]}
21. Nxd7 {[%clk 0:01:56.6]} 21... Nxd7 {[%clk 0:01:23.4]} 22. Qh3 {[%clk
0:01:58.2]} 22... Nf8 {[%clk 0:01:21.6]} 23. Rd3 {[%clk 0:01:02.7]} 23... Bc8
{[%clk 0:01:16]} 24. Rg3 {[%clk 0:00:54.2]} 24... Bxf5 {[%clk 0:01:15.4]} 25.
Qxf5 {[%clk 0:00:56.1]} 25... Ng6 {[%clk 0:01:16.5]} 26. Qg4 {[%clk 0:00:54.4]}
26... Re4 {[%clk 0:01:15.3]} 27. Bg5 {[%clk 0:00:49.6]} 27... h6 {[%clk
0:01:15.6]} 28. Bxh6 {[%clk 0:00:38]} 28... gxh6 {[%clk 0:01:17.5]} 29. Qh5
{[%clk 0:00:39.6]} 29... Kh7 {[%clk 0:00:36.7]} 30. Rh3 {[%clk 0:00:38.3]} 30...
Kg8 {[%clk 0:00:15.6]} 31. Qxh6 {[%clk 0:00:31.3]} 31... Rxf4 {[%clk 0:00:14.5]}
32. Re1 {[%clk 0:00:18.5]} 32... Qd6 {[%clk 0:00:04.8]} 33. Rh5 {[%clk
0:00:10.4]} 33... Qf6 {[%clk 0:00:05]} 34. Qh7+ {[%clk 0:00:06.4]} 34... Kf8
{[%clk 0:00:05.8]} 35. Rxd5 {[%clk 0:00:08]} 35... Qg7 {[%clk 0:00:06.6]} 36.
Qh5 {[%clk 0:00:08.9]} 36... Rc8 {[%clk 0:00:05.8]} 37. Qg5 {[%clk 0:00:06.8]}
37... Kg8 {[%clk 0:00:05.4]} 38. Rd8+ {[%clk 0:00:04.6]} 38... Rxd8 {[%clk
0:00:06.1]} 39. Qxd8+ {[%clk 0:00:06.5]} 39... Kh7 {[%clk 0:00:07.6]} 40. Re3
{[%clk 0:00:08.1]} 40... Nh4 {[%clk 0:00:08]} 41. g3 {[%clk 0:00:09.6]} 41...
Nf5 {[%clk 0:00:07]} 42. Re5 {[%clk 0:00:10.9]} 42... Nxg3 {[%clk 0:00:05.9]}
43. Kg2 {[%clk 0:00:04.2]} 43... Nf5+ {[%clk 0:00:06.4]} 44. Kh3 {[%clk
0:00:02.3]} 44... Qg4# {[%clk 0:00:05.9]} 0-1